bitfinex/quotes_ETHUSD_20240618
["timestamp","ask_amount","ask_price","bid_price","bid_amount"]
[1718744387532,2.88492,3466.3,3465.8,2.88532]
[1718744387962,2.88503,3466.2,3465.7,2.88541]
[1718744388474,2.88493,3466.3,3465.6,2.8855]
[1718744388976,2.88526,3465.9,3465.4,2.88563]
[1718744389181,2.93188108,3465.8,3465.1,2.88591]
[1718744389478,2.93188108,3465.8,3465.2,2.88576]
[1718744389673,2.93196108,3465.7,3465.1,2.88591]
[1718744390087,2.93196108,3465.7,3464.9,2.88607]
[1718744390088,2.88553,3465.6,3464.9,2.88607]
[1718744390300,2.88605,3465.0,3464.0,2.88683]
[1718744390583,0.04653108,3464.9,3463.8,2.88699]
[1718744390744,2.88634,3464.6,3464.0,2.88676]
[1718744390944,2.88625,3464.7,3464.0,2.88676]
[1718744391145,2.93287108,3464.6,3463.9,2.88688]
[1718744391554,2.93287108,3464.6,3463.4,3.515163]
[1718744391555,2.88651,3464.4,3463.4,3.515163]
[1718744391767,0.04653108,3464.3,3463.5,2.88723]
[1718744392380,3.4495,3464.6,3463.5,2.88722]
[1718744392676,3.4495,3464.6,3464.1,2.8867]
[1718744392883,3.4495,3464.6,3463.9,2.88691]
[1718744392884,3.4495,3464.6,3463.8,2.88696]
[1718744393069,3.4495,3464.6,3464.2,2.88662]
[1718744394150,3.4495,3464.6,3464.2,2.88665]
[1718744394344,3.4495,3464.6,3464.2,2.88658]
[1718744394552,3.4495,3464.6,3464.3,2.88651]
[1718744394780,2.886,3465.0,3464.3,2.88651]
[1718744395088,2.93261108,3464.9,3464.3,2.88658]
[1718744395647,2.88634,3464.6,3464.1,2.88667]
[1718744396072,3.17491,3465.0,3464.5,2.88639]
[1718744396287,3.63487,3466.4,3464.5,2.88639]
[1718744396288,3.4964,3465.6,3464.5,0.288639]
[1718744396452,2.88575,3465.3,3464.8,2.88616]
[1718744396870,3.4964,3466.2,3465.2,2.88576]
[1718744397101,0.608655,3467.0,3465.8,2.88529]
[1718744397102,3.4964,3466.9,3465.8,2.88529]
[1718744397386,3.4964,3466.9,3466.1,2.88501]
[1718744397387,2.8845,3466.8,3466.1,2.88501]
[1718744397571,2.8845,3466.8,3466.1,2.88508]
[1718744397887,3.811018,3466.8,3465.9,2.88517]
[1718744398095,2.88467,3466.6,3465.9,2.88517]
[1718744398389,2.93128108,3466.5,3466.0,2.88515]
[1718744398589,2.88475,3466.5,3466.0,2.88515]
[1718744398878,2.88475,3466.5,3465.9,2.88517]
[1718744399385,0.926518,3466.8,3465.3,0.288576]
[1718744399591,0.04653108,3466.7,3466.3,2.8849]
[1718744399813,0.04653108,3466.7,3465.9,2.8852]
[1718744399814,0.04653108,3466.7,3465.6,2.88549]
[1718744399997,2.88478,3466.5,3465.6,2.88549]
[1718744400201,2.88493,3466.3,3465.4,2.88565]
[1718744400398,3.4964,3466.9,3465.4,2.88565]
[1718744400399,3.4964,3466.9,3465.8,2.88532]
[1718744400711,3.4964,3466.9,3465.4,0.9060006]
[1718744400712,2.88492,3466.3,3465.4,0.9060006]
[1718744400874,2.88492,3466.3,3464.7,6.23664]
[1718744400875,2.88493,3466.3,3465.8,2.88531]
[1718744401078,0.04653108,3466.2,3465.4,2.88559]
[1718744401284,3.3882,3465.8,3464.5,2.8864]
[1718744401499,3.3882,3465.8,3463.7,3.2045942]
[1718744401500,2.88571,3465.4,3463.7,3.2045942]
[1718744401677,2.88565,3465.5,3465.0,2.88598]
[1718744401877,2.88567,3465.4,3464.7,2.88624]
[1718744402081,2.88585,3465.2,3464.7,2.88624]
[1718744402279,2.88551,3465.6,3463.9,2.88685]
[1718744402280,2.88638,3464.6,3463.9,2.88685]
[1718744402575,2.88618,3464.8,3464.2,2.8866]
[1718744402781,0.04653108,3464.7,3464.2,2.8866]
[1718744403017,2.88625,3464.7,3464.2,2.8866]
[1718744403173,2.8856,3465.5,3463.2,2.88749]
[1718744403480,2.88582,3465.3,3464.8,2.88615]
[1718744403687,2.88582,3465.3,3463.8,2.88695]
[1718744403688,2.88604,3465.0,3464.5,2.88641]
[1718744403882,5.88527,3465.9,3463.8,2.88695]
[1718744403883,2.88566,3465.5,3464.6,2.8863]
[1718744404125,2.88566,3465.5,3464.7,0.28863]
[1718744404126,2.88574,3465.4,3464.7,0.28863]
[1718744404422,0.04653108,3465.3,3464.5,2.88641]
[1718744404619,2.88583,3465.2,3464.5,2.88641]
[1718744404780,6.27356,3465.8,3464.4,2.88649]
[1718744404781,2.88594,3465.1,3464.4,2.88649]
[1718744404975,2.88594,3465.1,3464.4,3.175139]
[1718744405224,2.88554,3465.6,3464.4,0.288649]
[1718744405432,2.88559,3465.5,3464.9,2.88607]
[1718744405579,0.04653108,3465.4,3464.9,2.88607]
[1718744405774,0.04653108,3465.4,3464.0,2.88676]
[1718744405775,2.88525,3466.0,3465.5,2.88555]
[1718744406125,3.3752,3466.4,3465.6,0.0577099]
[1718744406418,0.04653108,3466.3,3464.8,2.88613]
[1718744406628,2.88501,3466.2,3465.2,2.88579]
[1718744406835,2.88501,3466.2,3465.3,0.288579]
[1718744406836,2.93162108,3466.1,3465.3,0.288579]
[1718744406979,2.88525,3465.9,3465.2,2.88583]
[1718744407209,2.88533,3465.9,3465.2,2.88581]
[1718744407413,6.26004,3466.4,3465.8,2.88532]
[1718744407652,2.88469,3466.6,3465.2,2.8858]
[1718744407866,2.88429,3467.1,3466.4,2.88482]
[1718744408011,2.88429,3467.1,3465.3,0.37513595]
[1718744408012,2.88427,3467.1,3466.5,2.88467]
[1718744408212,2.88453,3466.8,3466.2,2.88495]
[1718744408413,2.88439,3467.0,3466.3,2.88491]
[1718744408644,2.88439,3467.0,3466.2,3.173445]
[1718744408645,2.88425,3467.1,3466.6,2.88465]
[1718744408843,2.88442,3466.9,3466.6,0.58183697]
[1718744409042,2.88442,3466.9,3466.4,2.88482]
[1718744409253,0.016,3466.5,3466.4,2.88483]
[1718744409559,0.016,3466.5,3466.4,9.2603275]
[1718744409717,2.88292,3468.7,3467.3,2.88405]
[1718744410063,0.04653108,3468.6,3467.8,2.88362]
[1718744410350,0.34873311,3468.6,3467.8,2.88362]
[1718744410513,2.92947108,3468.7,3467.9,0.05766464]
[1718744410715,0.04653108,3468.7,3467.9,2.8835]
[1718744410965,2.88307,3468.6,3468.1,2.88342]
[1718744411263,2.88292,3468.7,3468.1,2.88342]
[1718744411558,3.4408,3469.4,3468.1,2.88342]
[1718744411559,3.4408,3469.4,3468.4,2.88312]
[1718744411845,3.4408,3469.4,3468.2,2.8833]
[1718744411846,2.88268,3469.0,3468.2,2.8833]
[1718744412047,4.0381,3469.2,3468.5,2.88308]
[1718744412249,4.0381,3469.2,3468.2,0.576676]
[1718744412250,2.92912108,3469.1,3468.2,0.576676]
[1718744412456,2.92912108,3469.1,3468.4,2.88315]
[1718744412642,2.92912108,3469.1,3468.3,2.88323]
[1718744412643,0.04653108,3469.1,3468.3,2.88323]
[1718744412976,2.87911108,3469.2,3468.2,0.576676]
[1718744413128,2.87911108,3469.2,3468.1,2.88339]
[1718744413129,2.88292,3468.7,3468.1,2.88339]
[1718744413314,2.88292,3468.7,3466.3,0.75]
[1718744413315,2.8832,3468.4,3466.9,2.88439]
[1718744413514,2.88378,3467.7,3467.0,2.88433]
[1718744413737,2.88378,3467.7,3466.8,2.88447]
[1718744413738,2.88395,3467.5,3466.8,2.8845]
[1718744413958,2.88395,3467.5,3466.9,2.8844]
[1718744414154,2.88346,3468.1,3467.5,2.8839]
[1718744414339,2.88346,3468.1,3467.1,2.88424]
[1718744414554,2.88368,3467.8,3467.2,2.92230233]
[1718744414781,2.88358,3468.0,3467.3,2.88408]
[1718744414981,2.88355,3468.0,3467.4,2.88392]
[1718744415295,2.88355,3468.0,3467.5,2.88392]
[1718744415467,2.88301,3468.6,3467.6,0.05594498]
[1718744415670,2.88301,3468.6,3467.7,2.88373]
[1718744416067,2.88358,3467.9,3467.3,3.460874]
[1718744416270,2.88358,3467.9,3467.1,2.88418]
[1718744416271,2.88342,3468.1,3467.4,2.884]
[1718744416459,2.88333,3468.3,3467.7,2.88375]
[1718744416658,3.6405,3468.9,3467.5,0.05767122]
[1718744416659,2.88314,3468.5,3468.0,2.88349]
[1718744416860,2.88318,3468.4,3467.9,2.88358]
[1718744417390,2.8831,3468.5,3467.9,2.88358]
[1718744417698,0.39334111,3468.8,3468.2,2.88333]
[1718744417869,3.3516,3468.9,3467.9,0.288358]
[1718744418201,2.88341,3468.2,3467.2,2.88415]
[1718744418523,2.88302,3468.6,3467.6,2.88382]
[1718744418797,3.3516,3468.9,3467.7,0.288382]
[1718744418798,2.88334,3468.2,3467.7,0.288382]
[1718744419007,2.88334,3468.2,3467.0,2.88429]
[1718744419008,2.88352,3468.0,3467.4,2.884]
[1718744419302,2.88334,3468.2,3467.6,2.8838]
[1718744419673,2.88334,3468.2,3467.5,2.88391]
[1718744419674,2.88343,3468.1,3467.5,2.88391]
[1718744419876,2.88361,3467.9,3466.9,2.88442]
[1718744420209,2.88383,3467.6,3467.0,2.88431]
[1718744420406,2.88404,3467.4,3466.7,2.88452]
[1718744420565,2.88367,3467.8,3466.6,2.88463]
[1718744420916,3.4078,3467.2,3464.6,3.2686]
[1718744421064,2.88467,3466.6,3465.6,2.88548]
[1718744421263,2.88467,3466.6,3465.8,2.88532]
[1718744421264,2.8849,3466.4,3465.8,2.88532]
[1718744421502,2.88508,3466.2,3465.6,3.174048]
[1718744421675,2.88492,3466.3,3465.3,2.88573]
[1718744422002,2.88492,3466.3,3465.8,2.88531]
[1718744422329,2.88525,3465.9,3465.4,3.174233]
[1718744422492,2.88525,3465.9,3465.4,2.88566]
[1718744422805,2.88517,3466.0,3465.4,2.88566]
[1718744423009,2.88509,3466.1,3465.4,2.88566]
[1718744423227,2.88468,3466.6,3465.9,2.88525]
[1718744423494,2.88475,3466.5,3466.0,2.90872551]
[1718744423665,0.2889,3467.4,3466.0,0.60296506]
[1718744423867,3.17292,3467.4,3466.2,2.88498]
[1718744424066,2.88442,3466.9,3466.4,2.88483]
[1718744424266,2.88458,3466.7,3466.0,3.46449955]
[1718744424580,2.88458,3466.7,3466.1,2.88508]
[1718744424907,6.38315,3467.5,3466.6,2.88464]
[1718744425077,2.88475,3466.5,3465.7,2.88541]
[1718744425263,2.88487,3466.4,3465.7,0.288541]
[1718744425469,2.88487,3466.4,3465.8,2.88533]
[1718744425764,2.88487,3466.4,3465.8,2.88531]
[1718744425979,2.88428,3467.1,3465.8,2.8853]
[1718744426207,2.88496,3466.3,3465.7,3.173901]
[1718744426419,2.8848,3466.5,3465.8,2.88525]
[1718744426733,2.88428,3467.1,3465.3,0.288578]
[1718744427027,2.88525,3465.9,3465.3,2.8857]
[1718744427435,2.88525,3465.9,3465.2,2.88576]
[1718744427436,2.885,3466.2,3465.6,2.88542]
[1718744427735,2.88509,3466.1,3465.6,2.88542]
[1718744428530,2.88509,3466.1,3465.6,3.462528]
[1718744428859,2.885,3466.2,3465.6,0.577108]
[1718744429000,2.885,3466.2,3465.3,2.88571]
[1718744429001,2.88535,3465.8,3465.3,2.88571]
[1718744430303,2.88543,3465.7,3465.2,2.88582]
[1718744430496,2.88518,3466.0,3465.2,2.88575]
[1718744430698,2.88534,3465.8,3465.2,6.060075]
[1718744430895,2.88534,3465.8,3465.2,3.174325]
[1718744431326,2.88567,3465.4,3464.7,2.88622]
[1718744431527,5.77153,3465.3,3464.3,2.88651]
[1718744431739,2.88612,3464.9,3464.3,2.88651]
[1718744432364,2.88638,3464.6,3464.0,2.88682]
[1718744432640,2.723,3465.5,3463.9,23.55509088]
[1718744432641,2.88682,3464.1,3463.9,23.55509088]
[1718744432821,2.88683,3464.0,3463.9,23.55509088]
[1718744433517,5.77260728,3464.0,3463.9,23.55509088]
[1718744434155,3.1822,3465.5,3464.2,2.88659]
[1718744434327,2.88483,3466.5,3465.0,2.88596]
[1718744434531,5.9052,3466.8,3465.9,2.88524]
[1718744434532,2.88465,3466.7,3465.9,2.88524]
[1718744434761,2.8847,3466.6,3466.0,0.02951385]
[1718744434964,2.88483,3466.5,3465.8,2.88533]
[1718744435291,2.88506,3466.2,3465.2,2.88581]
[1718744435417,2.88506,3466.2,3465.1,0.288596]
[1718744435418,2.88534,3465.8,3465.3,2.88573]
[1718744435618,2.88517,3466.0,3465.3,2.88573]
[1718744435619,2.88529,3465.9,3465.3,2.88573]
[1718744435819,2.88529,3465.9,3465.1,0.288596]
[1718744436121,0.9558367,3466.5,3465.2,3.59440581]
[1718744436122,2.885,3466.3,3465.2,3.59440581]
[1718744436480,0.2889,3466.7,3465.9,2.88517]
[1718744436641,2.88482,3466.5,3465.9,2.88517]
[1718744436963,2.88445,3466.9,3466.3,2.8849]
[1718744437120,2.88422,3467.2,3466.6,2.88466]
[1718744437621,5.76866,3467.1,3466.3,2.88486]
[1718744437820,3.17286,3467.5,3466.7,2.88457]
[1718744438125,3.3429,3468.2,3467.2,2.88416]
[1718744438126,2.88367,3467.8,3467.2,2.88416]
[1718744438326,2.88385,3467.6,3467.0,2.88425]
[1718744438534,2.88385,3467.6,3467.1,2.88423]
[1718744438827,0.62319,3468.1,3466.6,3.173093]
[1718744438828,2.88409,3467.3,3466.6,3.173093]
[1718744439028,2.88437,3467.0,3466.4,2.88483]
[1718744439229,2.88433,3467.0,3466.5,2.88475]
[1718744439444,2.88414,3467.3,3466.6,2.88465]
[1718744439754,2.88433,3467.1,3466.6,2.88465]
[1718744440068,3.17251,3467.9,3467.0,2.8843]
[1718744440372,2.88392,3467.5,3467.0,2.8843]
[1718744440663,2.88376,3467.7,3467.0,2.88432]
[1718744440830,2.88376,3467.7,3467.1,0.05767656]
[1718744440831,2.88392,3467.5,3467.1,0.05767656]
[1718744441231,2.88384,3467.6,3467.1,0.05767656]
[1718744441643,2.88395,3467.5,3467.1,0.05767656]
[1718744441845,2.88383,3467.7,3467.1,0.05767656]
[1718744442052,2.88374,3467.8,3467.1,0.05767656]
[1718744442254,2.88375,3467.7,3467.1,0.05767656]
[1718744442464,2.8841,3467.3,3465.5,2.88558]
[1718744442647,2.885,3466.2,3465.1,2.88587]
[1718744442848,2.88491,3466.4,3465.9,2.88523]
[1718744443155,2.8851,3466.1,3465.5,2.88557]
[1718744443333,2.88475,3466.5,3465.8,2.88531]
[1718744443334,2.88492,3466.3,3465.8,2.88531]
[1718744443533,2.88517,3466.0,3465.1,0.288587]
[1718744443733,2.88533,3465.9,3464.0,3.4782]
[1718744443936,2.88567,3465.4,3464.7,2.88624]
[1718744444138,2.88558,3465.6,3465.0,2.88592]
[1718744444351,2.88558,3465.5,3465.0,2.88592]
[1718744445034,2.88567,3465.4,3464.6,2.88627]
[1718744445357,2.88568,3465.4,3464.2,2.88663]
[1718744445531,2.8855,3465.6,3463.9,26.74789862]
[1718744445737,2.88617,3464.8,3464.3,2.88657]
[1718744446282,3.1951,3465.7,3464.4,2.88646]
[1718744446283,2.88603,3465.0,3464.4,2.88646]
[1718744446569,2.88603,3465.0,3464.0,5.56158986]
[1718744446570,2.88575,3465.3,3464.0,5.56158986]
[1718744446768,6.7232,3466.3,3464.9,2.88608]
[1718744446924,2.88541,3465.8,3465.2,2.88583]
[1718744447131,2.88534,3465.8,3465.3,2.88568]
[1718744447469,6.60815,3466.3,3465.4,2.88565]
[1718744447624,2.88501,3466.2,3465.1,2.88587]
[1718744447826,3.4343,3466.3,3464.6,0.28864]
[1718744448047,3.4343,3466.3,3464.9,2.88601]
[1718744448048,2.88559,3465.5,3464.9,2.88601]
[1718744448362,2.88553,3465.6,3465.0,2.88596]
[1718744448860,2.88491,3466.4,3464.3,3.0]
[1718744448861,2.88501,3466.2,3465.7,2.8854]
[1718744449057,2.88509,3466.1,3465.5,2.88551]
[1718744449361,2.88509,3466.1,3465.6,2.88548]
[1718744450169,2.88459,3466.7,3465.8,2.88528]
[1718744450477,2.88444,3466.9,3466.0,2.88511]
[1718744450778,2.88444,3466.9,3466.2,2.88497]
[1718744450927,2.88444,3466.9,3466.3,0.0165926]
[1718744451123,2.88452,3466.8,3466.1,0.29017045]
[1718744451373,2.88434,3467.0,3466.3,0.02677506]
[1718744451589,2.8842,3467.2,3466.7,2.88456]
[1718744451869,3.353,3467.5,3466.1,2.88508]
[1718744452072,2.88384,3467.6,3467.1,2.88418]
[1718744452927,2.88384,3467.6,3466.7,2.88456]
[1718744453123,3.460591,3467.6,3466.9,2.88441]
[1718744453328,2.88392,3467.5,3466.9,2.88442]
[1718744453937,2.884,3467.4,3466.9,2.88442]
[1718744454129,3.460588,3467.6,3467.1,2.88423]
[1718744454426,2.88393,3467.5,3466.7,2.88458]
[1718744455030,2.88393,3467.5,3467.0,2.88427]
[1718744455229,2.884,3467.4,3467.0,2.88427]
[1718744455464,2.884,3467.4,3466.9,2.88441]
[1718744455667,5.76774,3467.6,3467.0,2.94191063]
[1718744455959,2.88395,3467.5,3467.0,2.94191063]
[1718744456578,2.8841,3467.3,3467.0,0.05759063]
[1718744456753,2.8841,3467.3,3466.8,2.88449]
[1718744457356,3.460598,3467.6,3466.9,2.88439]
[1718744457542,2.88399,3467.5,3467.0,2.88426]
[1718744457742,2.88384,3467.6,3467.0,2.88426]
[1718744459400,2.88392,3467.5,3466.8,2.88448]
[1718744459553,2.88408,3467.4,3466.8,2.88448]
[1718744460043,2.88411,3467.3,3466.8,2.88448]
[1718744460246,2.88425,3467.1,3466.4,2.88478]
[1718744460663,2.88441,3467.0,3465.9,0.288528]
[1718744460942,2.88441,3467.0,3466.2,2.88492]
[1718744461143,2.8849,3466.4,3465.8,2.88528]
[1718744461350,2.88494,3466.3,3465.1,6.13398]
[1718744461644,2.88534,3465.8,3465.3,2.88574]
[1718744461847,2.88517,3466.0,3465.5,2.8855]
[1718744462240,2.8855,3465.6,3464.8,2.88613]
[1718744462445,2.8855,3465.6,3464.5,3.2481]
[1718744462842,2.8855,3465.6,3464.4,0.88020269]
[1718744462843,2.88492,3466.3,3464.6,2.88632]
[1718744463048,2.88593,3465.1,3464.6,2.88632]
[1718744463701,2.88582,3465.3,3464.3,2.88657]
[1718744463909,3.5004,3464.9,3464.3,2.88657]
[1718744464201,3.5004,3464.9,3463.9,29.30122041]
[1718744464202,3.5004,3464.9,3463.9,23.55509088]
[1718744464408,2.88617,3464.8,3464.0,2.88683]
[1718744464611,2.88647,3464.5,3464.0,5.8021969]
[1718744464913,2.88654,3464.4,3464.0,2.9153669]
[1718744465062,2.88642,3464.5,3463.9,23.55509088]
[1718744465266,2.88658,3464.3,3463.9,23.55509088]
[1718744465462,2.88656,3464.4,3463.9,23.55509088]
[1718744465763,2.88681,3464.1,3463.9,23.55509088]
[1718744465963,2.88658,3464.3,3463.9,23.55509088]
[1718744466302,2.88683,3464.0,3463.9,23.55509088]
[1718744466671,2.88652,3464.4,3463.9,23.55509088]
[1718744466872,2.88632,3464.7,3463.9,23.55509088]
[1718744467070,2.88642,3464.5,3463.9,23.55509088]
[1718744467314,2.88642,3464.5,3464.0,5.53103609]
[1718744467602,2.88642,3464.5,3464.0,8.41785609]
[1718744467910,6.321,3465.6,3464.3,2.88658]
[1718744467911,2.88576,3465.3,3464.3,2.88658]
[1718744468217,3.17431,3465.7,3465.0,2.88598]
[1718744468427,3.2346,3466.2,3465.1,0.03790189]
[1718744468575,3.2346,3466.2,3464.8,2.88616]
[1718744468576,2.88574,3465.4,3464.8,2.88616]
[1718744468777,2.88542,3465.7,3465.2,2.88582]
[1718744469105,3.2346,3466.2,3464.8,0.577241]
[1718744469291,2.88617,3464.8,3464.0,5.53104609]
[1718744469492,2.88625,3464.7,3464.0,5.53104609]
[1718744469699,2.88625,3464.7,3464.0,2.64421609]
[1718744469700,2.8865,3464.5,3464.0,2.64421609]
[1718744470005,5.77366,3464.0,3463.9,23.55509088]
[1718744470222,8.66049,3464.0,3463.9,23.55509088]
[1718744470432,2.88674,3464.2,3463.9,23.55509088]
[1718744470971,2.88675,3464.1,3463.9,23.55509088]
[1718744471586,2.88625,3464.7,3463.9,26.47045778]
[1718744471789,2.88625,3464.7,3463.9,23.55509088]
[1718744471987,2.88656,3464.4,3463.9,23.55509088]
[1718744472206,2.88625,3464.7,3464.2,2.88666]
[1718744472517,2.88642,3464.5,3464.2,2.64417509]
[1718744472683,2.88609,3464.9,3464.2,2.64417509]
[1718744472684,2.88609,3464.9,3464.4,2.88648]
[1718744472880,2.88618,3464.8,3464.3,2.88658]
[1718744473091,3.982334,3465.6,3464.0,2.88683]
[1718744473292,2.88631,3464.7,3464.0,2.9393571]
[1718744473492,2.88631,3464.7,3464.2,2.88663]
[1718744473790,2.88631,3464.7,3464.3,0.04248386]
[1718744474315,2.88616,3464.8,3464.2,2.88658]
[1718744474519,2.88593,3465.1,3464.4,2.88648]
[1718744474687,2.8856,3465.5,3464.6,2.88625]
[1718744475018,2.88605,3465.0,3464.7,0.58303162]
[1718744475318,2.88575,3465.3,3464.8,2.88616]
[1718744475479,2.88584,3465.2,3464.5,2.88635]
[1718744475819,2.88566,3465.5,3464.2,2.88664]
[1718744475820,2.88624,3464.8,3464.2,2.88665]
[1718744476321,2.88628,3464.7,3464.2,2.88665]
[1718744476487,2.88584,3465.2,3463.8,6.3886]
[1718744476683,2.88584,3465.2,3464.7,2.88618]
[1718744477100,2.88596,3465.1,3464.4,2.88649]
[1718744477300,2.88373,3467.8,3466.1,2.88502]
[1718744477523,2.88361,3467.9,3466.6,2.88466]
[1718744477713,2.88384,3467.6,3466.7,2.93226158]
[1718744477887,2.88333,3468.3,3467.0,2.8843]
[1718744477888,2.88329,3468.3,3467.0,2.8843]
[1718744478089,2.8835,3468.0,3467.4,2.884]
[1718744478409,2.88302,3468.6,3467.5,0.05767236]
[1718744478717,2.88325,3468.3,3467.7,2.88375]
[1718744478918,2.88325,3468.3,3467.3,2.88408]
[1718744478919,2.88327,3468.3,3467.3,2.88408]
[1718744479100,2.8835,3468.1,3467.3,2.88408]
[1718744479416,2.88351,3468.0,3467.4,2.884]
[1718744479784,2.88359,3467.9,3467.3,2.88407]
[1718744479995,2.88369,3467.8,3467.2,2.88415]
[1718744480209,2.88369,3467.8,3467.3,2.88408]
[1718744480397,2.88351,3468.0,3467.2,2.88413]
[1718744481187,2.88351,3468.0,3467.1,2.88424]
[1718744481615,2.88376,3467.7,3467.2,2.88417]
[1718744482330,2.88376,3467.7,3467.0,2.88428]
[1718744482496,2.88376,3467.7,3467.0,2.88433]
[1718744482698,2.88376,3467.7,3467.1,2.88425]
[1718744483041,2.88379,3467.7,3466.2,3.0]
[1718744483206,2.88379,3467.7,3467.2,2.88413]
[1718744484030,2.88385,3467.6,3467.0,2.88428]
[1718744484329,2.88372,3467.8,3467.3,2.88406]
[1718744484632,0.2889,3468.1,3467.4,2.884]
[1718744484841,2.88359,3467.9,3467.2,2.88412]
[1718744485132,2.88377,3467.7,3467.1,2.88417]
[1718744485297,2.88377,3467.7,3466.9,2.88437]
[1718744485629,0.606123,3468.1,3466.4,0.92943195]
[1718744485630,3.489563,3468.1,3467.1,2.88425]
[1718744485839,2.88384,3467.6,3467.0,2.88433]
[1718744486027,2.88384,3467.6,3466.8,2.88445]
[1718744486028,2.88398,3467.5,3467.1,0.05767873]
[1718744486197,2.88401,3467.4,3466.9,0.05767916]
[1718744486394,2.8841,3467.3,3466.9,0.05767916]
[1718744486627,2.88392,3467.5,3466.9,2.94206916]
[1718744487852,2.88401,3467.4,3466.9,0.05767916]
[1718744488797,2.88417,3467.2,3466.7,2.8845]
[1718744489107,2.88413,3467.3,3466.7,2.88458]
[1718744489963,2.88417,3467.2,3466.7,2.88458]
[1718744490135,2.88417,3467.2,3465.4,6.086964]
[1718744490136,2.8844,3467.0,3466.4,2.88483]
[1718744490308,2.88416,3467.3,3466.6,2.88459]
[1718744491008,2.88435,3467.0,3466.4,2.88483]
[1718744491344,3.172656,3467.2,3466.6,2.8846]
[1718744491553,2.88425,3467.1,3466.6,2.8846]
[1718744491842,2.88425,3467.1,3466.4,2.88483]
[1718744491843,3.172626,3467.2,3466.7,2.88458]
[1718744492066,3.172626,3467.2,3466.5,2.88475]
[1718744492067,2.88408,3467.3,3466.8,2.8845]
[1718744492204,2.8842,3467.2,3466.3,2.88489]
[1718744492577,5.76844,3467.2,3466.3,2.88489]
[1718744492862,2.88434,3467.0,3466.5,2.88469]
[1718744493152,2.8842,3467.2,3466.6,2.88465]
[1718744494163,2.88425,3467.1,3466.6,2.88465]
[1718744495419,2.88442,3466.9,3466.4,2.88483]
[1718744495835,2.88417,3467.2,3466.5,2.88474]
[1718744496037,0.3172444,3467.3,3466.4,2.88483]
[1718744496549,2.88426,3467.1,3466.5,2.88474]
[1718744496954,2.88435,3467.0,3466.5,2.88474]
[1718744497161,2.88435,3467.0,3466.3,2.88491]
[1718744497487,2.8844,3467.0,3466.3,2.8849]
[1718744497604,2.8844,3467.0,3466.5,2.88474]
[1718744497936,2.8844,3467.0,3464.8,3.3296]
[1718744497937,0.2889,3466.7,3464.8,3.3296]
[1718744498149,0.2889,3465.9,3464.4,2.85924953]
[1718744498436,0.2889,3465.9,3464.4,2.88648]
[1718744498437,2.88604,3465.0,3464.4,2.88648]
[1718744498824,2.88604,3465.0,3464.2,6.21626]
[1718744499019,2.88609,3464.9,3464.2,6.21626]
[1718744499221,2.88617,3464.8,3464.3,1.20184269]
[1718744499549,2.88622,3464.8,3464.3,1.20184269]
[1718744499735,2.88625,3464.7,3464.0,2.9153669]
[1718744499941,2.88625,3464.7,3464.1,2.88674]
[1718744500447,2.88617,3464.8,3464.2,2.88664]
[1718744500657,2.88627,3464.7,3464.1,2.9153669]
[1718744500834,2.88627,3464.7,3464.2,0.44835301]
[1718744501827,2.88635,3464.6,3464.2,0.44835301]
[1718744502029,0.2889,3465.4,3463.9,23.55509088]
[1718744502030,2.8861,3464.9,3463.9,23.55509088]
[1718744502355,2.8861,3464.9,3464.0,2.8868]
[1718744502356,2.88634,3464.6,3464.0,2.8868]
[1718744502513,2.88604,3465.0,3463.9,23.55509088]
[1718744502914,2.88658,3464.4,3463.9,23.55509088]
[1718744503152,2.88659,3464.3,3463.9,23.55509088]
[1718744503541,0.606341,3465.4,3463.9,23.55509088]
[1718744503542,2.88483,3466.5,3465.1,8.65758]
[1718744503756,2.88411,3467.3,3465.2,0.03008105]
[1718744504075,2.88459,3466.7,3465.7,2.88535]
[1718744504210,2.88457,3466.8,3465.8,2.88531]
[1718744504414,2.88459,3466.7,3465.8,2.88531]
[1718744504615,2.88475,3466.5,3464.6,2.88626]
[1718744504859,2.88409,3467.3,3464.9,0.343626]
[1718744504860,2.88501,3466.2,3464.9,0.343626]
[1718744505112,2.88484,3466.4,3465.6,2.8855]
[1718744505113,2.88489,3466.4,3465.6,2.8855]
[1718744505293,2.88489,3466.4,3465.7,0.577116]
[1718744505457,2.88492,3466.3,3465.4,2.88558]
[1718744505956,2.88483,3466.4,3465.8,2.88525]
[1718744506368,2.88484,3466.4,3465.8,2.88525]
[1718744506571,3.22417,3467.3,3465.9,2.88524]
[1718744506752,2.88368,3467.8,3467.1,2.88421]
[1718744506976,2.88392,3467.5,3466.4,2.88483]
[1718744507176,2.88392,3467.5,3466.1,0.3]
[1718744507384,2.88392,3467.5,3466.6,2.8846]
[1718744507601,2.88418,3467.2,3466.7,2.88458]
[1718744508215,2.88424,3467.2,3466.5,2.88467]
[1718744508377,2.88424,3467.2,3466.6,2.88459]
[1718744508579,2.88424,3467.2,3466.2,2.88498]
[1718744508845,2.88424,3467.2,3466.6,2.88465]
[1718744509023,2.88425,3467.1,3466.5,2.88475]
[1718744509187,2.88426,3467.1,3465.8,2.88529]
[1718744509369,2.88465,3466.7,3465.7,2.8854]
[1718744509576,2.88465,3466.7,3466.0,2.88517]
[1718744509807,2.88465,3466.7,3466.1,2.88508]
[1718744509975,2.88435,3467.0,3466.1,2.88508]
[1718744510178,2.88458,3466.7,3466.0,2.88516]
[1718744510381,2.8847,3466.6,3465.9,2.88525]
[1718744510709,2.88482,3466.5,3465.8,2.88533]
[1718744510906,2.88484,3466.4,3465.8,2.88533]